fUSD/lending_fUSD_20240527
["ID","MTS","AMOUNT","RATE_DAILY","PERIOD"]
[328036831,1716809432355,-605.47642,0.0003167,2]
[328036832,1716809432364,-602.69686222,0.00031689,20]
[328036833,1716809432373,-940.65333313,0.0003178,5]
[328036834,1716809432383,-2541.85280697,0.000318,2]
[328036835,1716809432393,-183133.0921736,0.0003188,7]
[328036836,1716809432402,-154.14656404,0.00031891,7]
[328036837,1716809432412,-4354.27951612,0.000319,3]
[328036838,1716809432422,-491.7921,0.000319,2]
[328036839,1716809432432,-261.61455202,0.000319,2]
[328036840,1716809432442,-457.0,0.00031955,3]
[328036841,1716809432452,-457.0,0.00031955,3]
[328036842,1716809432461,-457.0,0.00031955,3]
[328036843,1716809432470,-457.0,0.00031955,3]
[328036844,1716809432480,-457.0,0.00031955,3]
[328036845,1716809432489,-457.0,0.00031955,3]
[328036846,1716809432499,-457.0,0.00031955,3]
[328036847,1716809432508,-457.0,0.00031955,3]
[328036848,1716809432517,-457.0,0.00031955,3]
[328036849,1716809432527,-457.0,0.00031955,3]
[328036850,1716809432536,-7236.07,0.00031988,5]
[328036851,1716809432545,-1497.8032912,0.00031993,2]
[328036852,1716809432555,-255.5179177,0.00031993,2]
[328036853,1716809432564,-292.1317659,0.00031993,2]
[328036854,1716809432574,-5728.760954,0.00031993,2]
[328036855,1716809432585,-268.51121267,0.00031998,4]
[328036856,1716809432594,-312.7091727,0.00031998,4]
[328036857,1716809432604,-668.920183,0.00031998,4]
[328036858,1716809432614,-252.44625317,0.00031999,4]
[328036859,1716809432624,-500.0,0.00031999,5]
[328036860,1716809432636,-500.0,0.00031999,5]
[328036861,1716809432646,-500.0,0.00031999,5]
[328036862,1716809432655,-500.0,0.00031999,5]
[328036863,1716809432665,-1005.63935589,0.00032,5]
[328036864,1716809432679,-6239.50064411,0.00032,5]
[328036865,1716809432689,-19517.99942589,0.00032,5]
[328036866,1716809432702,-872.67905712,0.00032,5]
[328036867,1716809432714,-958.2,0.00032,5]
[328036868,1716809432848,-338.34904177,0.00032,5]
[328036869,1716809437728,-11437.81967512,0.00032,11]
[328036889,1716809437995,-1697.333572,0.00032,11]
[328036890,1716809438007,-4470.90884912,0.00032,11]
[328036891,1716809438268,-1698.0002,0.00032,11]
[328036900,1716809441526,-7448.61210025,0.00032,11]
[328036901,1716809441536,-1481418.32059853,0.00032,5]
[328036902,1716809441549,-801707.36053756,0.00032,5]
[328036903,1716809441562,-1962.24259206,0.00032,5]
[328036904,1716809442408,-419.90003068,0.00032,5]
[328036905,1716809442419,-303.78677249,0.00032,5]
[328036906,1716809442620,-38625.61,0.00032,5]
[328036907,1716809442632,-7052.791525,0.00032,5]
[328036908,1716809442645,-19854.32445067,0.00032,5]
[328036909,1716809442873,-194072.27971054,0.00032,5]
[328036912,1716809442886,-1076.41817384,0.00032,5]
[328036914,1716809442903,-1870.0,0.00032,5]
[328036917,1716809442915,-3859.24816951,0.00032,5]
[328036921,1716809442930,-1196.82809882,0.00032,5]
[328036923,1716809443128,-280.71380614,0.00032,5]
[328036924,1716809443140,-3843.32882048,0.00032,5]
[328036925,1716809443152,-1740.00421824,0.00032,5]
[328036928,1716809444329,-9997.28586548,0.00032,5]
[328036935,1716809445849,-11664.0,0.00032,5]
[328036936,1716809445866,-6950.882,0.00032,5]
[328036938,1716809445879,-1644.67404849,0.00032,5]
[328036943,1716809445920,-1443.788,0.00032,5]
[328036953,1716809446670,-7124.4,0.00032,5]
[328036954,1716809446682,-2413.75,0.00032,5]
[328036955,1716809446693,-3918.95085279,0.00032,5]
[328036956,1716809446708,-147595.32371844,0.00032,5]
[328036957,1716809446717,-227.04273231,0.00032,4]
[328036958,1716809446727,-152.73,0.00032,2]
[328036959,1716809446737,-153.59,0.00032,2]
[328036960,1716809446747,-44889.69883547,0.00032,5]
[328036961,1716809446757,-1000.0,0.00032,2]
[328036962,1716809446766,-1000.0,0.00032,2]
[328036963,1716809446776,-1000.0,0.00032,2]
[328036964,1716809446786,-1000.0,0.00032,2]
[328036965,1716809446796,-1149.0,0.00032,2]
[328036966,1716809446805,-500.0,0.00032,2]
[328036967,1716809446816,-500.0,0.00032,2]
[328036968,1716809446825,-500.0,0.00032,2]
[328036969,1716809446835,-500.0,0.00032,2]
[328036970,1716809446848,-500.0,0.00032,2]
[328036971,1716809446859,-164.99518384,0.00032,7]
[328036972,1716809446869,-150.0,0.00032,7]
[328036973,1716809446879,-2000.0,0.00032,2]
[328036974,1716809446891,-200.0,0.00032,2]
[328036975,1716809446902,-7289.51,0.00032,5]
[328036976,1716809446911,-7485.61,0.00032,5]
[328036978,1716809446922,-7309.23,0.00032,5]
[328036980,1716809446934,-4354.2795161,0.00032015,3]
[328036982,1716809446944,-1889.08,0.000321,5]
[328036984,1716809446954,-4354.2795161,0.00032131,3]
[328036986,1716809446964,-237.08,0.00032224,2]
[328036988,1716809446974,-4354.2795161,0.00032246,4]
[328036990,1716809446984,-4354.2795161,0.00032362,4]
[328036992,1716809446994,-4354.2795161,0.00032477,4]
[328036994,1716809447003,-200.0,0.00032503,120]
[328036996,1716809447013,-261.61455201,0.00032547,2]
[328036998,1716809447023,-4354.2795161,0.00032593,4]
[328037000,1716809447034,-155.63070279,0.000327,5]
[328037002,1716809447044,-4354.2795161,0.00032708,4]
[328037004,1716809447054,-10000.0,0.00032776,2]
[328037006,1716809447064,-7500.0,0.00032776,2]
[328037008,1716809447073,-50000.0,0.000328,2]
[328037009,1716809447083,-4354.2795161,0.00032824,4]
[328037010,1716809447094,-500.0,0.00032876,7]
[328037011,1716809447104,-446.59143724,0.00032876,7]
[328037012,1716809447114,-524.81472794,0.00032876,7]
[328037013,1716809447124,-500.0,0.00032876,7]
[328037014,1716809447134,-613.85024924,0.00032876,7]
[328037015,1716809447144,-505.75116104,0.00032876,7]
[328037016,1716809447154,-500.0,0.00032876,7]
[328037017,1716809447163,-500.0,0.00032876,7]
[328037018,1716809447173,-500.0,0.00032876,7]
[328037019,1716809447183,-500.0,0.00032876,7]
[328037020,1716809447194,-519.10856865,0.00032876,7]
[328037021,1716809447203,-500.0,0.00032876,7]
[328037022,1716809447213,-500.0,0.00032876,7]
[328037023,1716809447222,-592.75,0.00032876,7]
[328037024,1716809447232,-500.0,0.00032876,7]
[328037025,1716809447242,-511.7672946,0.00032876,7]
[328037026,1716809447252,-514.47299983,0.00032876,7]
[328037027,1716809447261,-500.0,0.00032876,7]
[328037028,1716809447271,-482.74,0.00032876,7]
[328037029,1716809447281,-523.01404284,0.00032876,7]
[328037030,1716809447291,-500.0,0.00032876,7]
[328037031,1716809447301,-500.0,0.00032876,7]
[328037032,1716809447311,-500.0,0.00032876,7]
[328037033,1716809447321,-500.0,0.00032876,7]
[328037034,1716809447331,-500.0,0.00032876,7]
[328037035,1716809447341,-500.0,0.00032876,7]
[328037036,1716809447351,-284.19,0.00032876,7]
[328037037,1716809447360,-509.05885477,0.00032876,7]
[328037038,1716809447371,-500.0,0.00032876,7]
[328037039,1716809447380,-500.0,0.00032876,7]
[328037040,1716809447390,-500.0,0.00032876,7]
[328037041,1716809447400,-500.0,0.00032876,7]
[328037042,1716809447410,-500.0,0.00032876,7]
[328037043,1716809447419,-500.0,0.00032876,7]
[328037044,1716809447429,-161.3680206,0.00032876,7]
[328037045,1716809447439,-500.0,0.00032876,7]
[328037046,1716809447448,-505.72857141,0.00032876,7]
[328037047,1716809447457,-513.52191705,0.00032876,7]
[328037048,1716809447467,-508.04143948,0.00032876,7]
[328037049,1716809447476,-500.0,0.00032876,7]
[328037050,1716809447486,-500.0,0.00032876,7]
[328037051,1716809447496,-500.0,0.00032876,7]
[328037052,1716809447505,-500.0,0.00032876,7]
[328037053,1716809447515,-500.0,0.00032876,7]
[328037054,1716809447525,-500.0,0.00032876,7]
[328037055,1716809447535,-500.0,0.00032876,7]
[328037056,1716809447544,-547.50545314,0.00032876,7]
[328037057,1716809447554,-604.42,0.00032876,7]
[328037058,1716809447565,-506.1565305,0.00032876,7]
[328037059,1716809447574,-500.0,0.00032876,7]
[328037060,1716809447584,-500.0,0.00032876,7]
[328037061,1716809447594,-500.0,0.00032876,7]
[328037062,1716809447604,-500.0,0.00032876,7]
[328037063,1716809447613,-500.0,0.00032876,7]
[328037064,1716809447623,-500.0,0.00032876,7]
[328037065,1716809447632,-500.0,0.00032876,7]
[328037066,1716809447642,-500.0,0.00032876,7]
[328037067,1716809447652,-500.0,0.00032876,7]
[328037068,1716809447661,-500.0,0.00032876,7]
[328037069,1716809447671,-500.0,0.00032876,7]
[328037070,1716809447680,-500.0,0.00032876,7]
[328037071,1716809447691,-500.0,0.00032876,7]
[328037072,1716809447701,-500.0,0.00032876,7]
[328037073,1716809447711,-500.0,0.00032876,7]
[328037074,1716809447721,-635.15,0.00032876,7]
[328037075,1716809447731,-500.0,0.00032876,7]
[328037076,1716809447741,-508.50390491,0.00032876,7]
[328037077,1716809447751,-501.30716805,0.00032876,7]
[328037078,1716809447762,-508.11595075,0.00032876,7]
[328037079,1716809447772,-500.0,0.00032876,7]
[328037080,1716809447782,-187.9076828,0.00032876,7]
[328037081,1716809447792,-300.6104504,0.00032876,7]
[328037082,1716809447802,-503.1278947,0.00032876,7]
[328037083,1716809447812,-500.0,0.00032876,7]
[328037084,1716809447822,-500.0,0.00032876,7]
[328037085,1716809447832,-360.42,0.00032876,7]
[328037086,1716809447844,-581.03937322,0.00032876,7]
[328037087,1716809447859,-500.0,0.00032876,7]
[328037088,1716809447869,-504.57406767,0.00032876,7]
[328037089,1716809447879,-500.0,0.00032876,7]
[328037090,1716809447891,-500.0,0.00032876,7]
[328037091,1716809447902,-504.71753288,0.00032876,7]
[328037092,1716809447913,-500.0,0.00032876,7]
[328037093,1716809447923,-500.0,0.00032876,7]
[328037094,1716809447935,-500.0,0.00032876,7]
[328037095,1716809447945,-500.0,0.00032876,7]
[328037096,1716809447954,-509.24836075,0.00032876,7]
[328037097,1716809447964,-500.0,0.00032876,7]
[328037098,1716809447974,-505.31328844,0.00032876,7]
[328037099,1716809448103,-512.5621293,0.00032876,7]
[328037100,1716809448115,-600.0,0.00032876,7]
[328037101,1716809448125,-504.46991773,0.00032876,7]
[328037102,1716809448135,-500.0,0.00032876,7]
[328037103,1716809448145,-500.0,0.00032876,7]
[328037104,1716809448154,-500.0,0.00032876,7]
[328037105,1716809448165,-505.36024554,0.00032876,7]
[328037106,1716809448175,-631.83426538,0.00032876,7]
[328037107,1716809448185,-500.0,0.00032876,7]
[328037108,1716809448195,-500.0,0.00032876,7]
[328037109,1716809448206,-500.0,0.00032876,7]
[328037110,1716809448216,-500.0,0.00032876,7]
[328037111,1716809448227,-500.0,0.00032876,7]
[328037112,1716809448237,-509.42389511,0.00032876,7]
[328037113,1716809448248,-500.0,0.00032876,7]
[328037114,1716809448258,-500.0,0.00032876,7]
[328037115,1716809448268,-500.0,0.00032876,7]
[328037116,1716809448277,-500.0,0.00032876,7]
[328037117,1716809448287,-500.0,0.00032876,7]
[328037118,1716809448298,-500.0,0.00032876,7]
[328037119,1716809448308,-500.0,0.00032876,7]
[328037120,1716809448319,-500.0,0.00032876,7]
[328037121,1716809448328,-515.07566996,0.00032876,7]
[328037122,1716809448340,-500.0,0.00032876,7]
[328037123,1716809448350,-512.95715484,0.00032876,7]
[328037124,1716809448360,-500.0,0.00032876,7]
[328037125,1716809448369,-500.0,0.00032876,7]
[328037126,1716809448380,-500.0,0.00032876,7]
[328037127,1716809448390,-500.0,0.00032876,7]
[328037128,1716809448401,-555.11478203,0.00032876,7]
[328037129,1716809448411,-500.0,0.00032876,7]
[328037130,1716809448421,-636.29,0.00032876,7]
[328037131,1716809448431,-500.0,0.00032876,7]
[328037132,1716809448441,-500.0,0.00032876,7]
[328037133,1716809448451,-516.71776243,0.00032876,7]
[328037134,1716809448461,-500.0,0.00032876,7]
[328037135,1716809448471,-500.0,0.00032876,7]
[328037136,1716809448480,-500.0,0.00032876,7]
[328037137,1716809448491,-500.0,0.00032876,7]
[328037138,1716809448500,-231.95,0.00032876,7]
[328037139,1716809448510,-500.0,0.00032876,7]
[328037140,1716809448520,-500.0,0.00032876,7]
[328037141,1716809448530,-436.05952131,0.00032876,7]
[328037142,1716809448540,-500.0,0.00032876,7]
[328037143,1716809448550,-500.0,0.00032876,7]
[328037144,1716809448560,-620.73437979,0.00032876,7]
[328037145,1716809448570,-500.0,0.00032876,7]
[328037146,1716809448581,-500.0,0.00032876,7]
[328037147,1716809448592,-500.0,0.00032876,7]
[328037148,1716809448603,-500.0,0.00032876,7]
[328037149,1716809448613,-500.0,0.00032876,7]
[328037150,1716809448623,-500.0,0.00032876,7]
[328037151,1716809448633,-500.0,0.00032876,7]
[328037152,1716809448643,-500.0,0.00032876,7]
[328037153,1716809448653,-500.0,0.00032876,7]
[328037154,1716809448662,-500.0,0.00032876,7]
[328037155,1716809448672,-500.0,0.00032876,7]
[328037156,1716809448683,-500.0,0.00032876,7]
[328037157,1716809448693,-353.23,0.00032876,7]
[328037158,1716809448703,-509.85799959,0.00032876,7]
[328037159,1716809448712,-150.0,0.00032876,7]
[328037160,1716809448722,-150.0,0.00032876,7]
[328037161,1716809448732,-500.0,0.00032876,7]
[328037162,1716809448742,-500.0,0.00032876,7]
[328037163,1716809448752,-150.32,0.00032876,7]
[328037164,1716809448762,-515.68492005,0.00032876,7]
[328037165,1716809448772,-500.0,0.00032876,7]
[328037166,1716809448782,-500.0,0.00032876,7]
[328037167,1716809448791,-277.5835047,0.00032876,7]
[328037168,1716809448907,-222.4164953,0.00032876,7]
[328037169,1716809448919,-616.08,0.00032876,7]
[328037170,1716809448929,-500.0,0.00032876,7]
[328037171,1716809448940,-500.0,0.00032876,7]
[328037172,1716809448950,-450.0,0.00032876,7]
[328037173,1716809448960,-500.0,0.00032876,7]
[328037174,1716809448970,-500.0,0.00032876,7]
[328037175,1716809448979,-500.0,0.00032876,7]
[328037176,1716809448991,-514.72,0.00032876,7]
[328037177,1716809449001,-506.05316256,0.00032876,7]
[328037178,1716809449010,-500.0,0.00032876,7]
[328037179,1716809449020,-500.0,0.00032876,7]
[328037180,1716809449030,-500.0,0.00032876,7]
[328037181,1716809449040,-500.0,0.00032876,7]
[328037182,1716809449049,-246.33,0.00032876,7]
[328037183,1716809449059,-500.0,0.00032876,7]
[328037184,1716809449068,-274.46,0.00032876,7]
[328037185,1716809449078,-500.0,0.00032876,7]
[328037186,1716809449087,-500.0,0.00032876,7]
[328037187,1716809449098,-500.0,0.00032876,7]
[328037188,1716809449108,-500.0,0.00032876,7]
[328037189,1716809449118,-442.34938702,0.00032876,7]
[328037190,1716809449128,-500.0,0.00032876,7]
[328037191,1716809449138,-500.0,0.00032876,7]
[328037192,1716809449148,-500.0,0.00032876,7]
[328037193,1716809449158,-500.0,0.00032876,7]
[328037194,1716809449168,-500.0,0.00032876,7]
[328037195,1716809449179,-500.0,0.00032876,7]
[328037196,1716809449188,-500.0,0.00032876,7]
[328037197,1716809449198,-500.0,0.00032876,7]
[328037198,1716809449207,-500.0,0.00032876,7]
[328037199,1716809449217,-500.0,0.00032876,7]
[328037200,1716809449227,-500.0,0.00032876,7]
[328037201,1716809449237,-500.0,0.00032876,7]
[328037202,1716809449247,-500.0,0.00032876,7]
[328037203,1716809449256,-508.60151783,0.00032876,7]
[328037204,1716809449266,-500.0,0.00032876,7]
[328037205,1716809449275,-500.0,0.00032876,7]
[328037206,1716809449284,-500.0,0.00032876,7]
[328037207,1716809449294,-500.0,0.00032876,7]
[328037208,1716809449304,-500.0,0.00032876,7]
[328037209,1716809449313,-500.0,0.00032876,7]
[328037210,1716809449322,-500.0,0.00032876,7]
[328037211,1716809449332,-500.0,0.00032876,7]
[328037212,1716809449342,-500.0,0.00032876,7]
[328037213,1716809449352,-500.0,0.00032876,7]
[328037214,1716809449362,-500.0,0.00032876,7]
[328037215,1716809449371,-500.0,0.00032876,7]
[328037216,1716809449381,-504.56856693,0.00032876,7]
[328037217,1716809449390,-572.60530382,0.00032876,7]
[328037218,1716809449400,-500.0,0.00032876,7]
[328037219,1716809449410,-500.0,0.00032876,7]
[328037220,1716809449419,-500.0,0.00032876,7]
[328037221,1716809449428,-500.0,0.00032876,7]
[328037222,1716809449438,-576.21,0.00032876,7]
[328037223,1716809449447,-500.0,0.00032876,7]
[328037224,1716809449457,-500.0,0.00032876,7]
[328037225,1716809449466,-500.0,0.00032876,7]
[328037226,1716809449475,-500.0,0.00032876,7]
[328037227,1716809449485,-500.0,0.00032876,7]
[328037228,1716809449495,-500.0,0.00032876,7]
[328037229,1716809449505,-500.0,0.00032876,7]
[328037230,1716809449515,-500.0,0.00032876,7]
[328037231,1716809449525,-500.0,0.00032876,7]
[328037232,1716809449535,-323.16,0.00032876,7]
[328037233,1716809449544,-500.0,0.00032876,7]
[328037234,1716809449554,-500.0,0.00032876,7]
[328037235,1716809449563,-500.0,0.00032876,7]
[328037236,1716809449573,-507.79744307,0.00032876,7]
[328037237,1716809449582,-500.0,0.00032876,7]
[328037238,1716809449593,-511.42241836,0.00032876,7]
[328037239,1716809449602,-428.23680751,0.00032876,7]
[328037240,1716809449612,-500.0,0.00032876,7]
[328037241,1716809449622,-500.0,0.00032876,7]
[328037242,1716809449632,-500.0,0.00032876,7]
[328037243,1716809449641,-500.0,0.00032876,7]
[328037244,1716809449651,-500.0,0.00032876,7]
[328037245,1716809449660,-500.0,0.00032876,7]
[328037246,1716809449670,-500.0,0.00032876,7]
[328037247,1716809449680,-504.8280821,0.00032876,7]
[328037248,1716809449689,-500.0,0.00032876,7]
[328037249,1716809449699,-278.3408199,0.00032876,7]
[328037250,1716809449709,-500.0,0.00032876,7]
[328037251,1716809449718,-500.0,0.00032876,7]
[328037252,1716809449728,-500.0,0.00032876,7]
[328037253,1716809449737,-500.0,0.00032876,7]
[328037254,1716809449747,-500.0,0.00032876,7]
[328037255,1716809449757,-500.0,0.00032876,7]
[328037256,1716809449767,-500.0,0.00032876,7]
[328037257,1716809449777,-500.0,0.00032876,7]
[328037258,1716809449786,-356.62669294,0.00032876,7]
[328037259,1716809449797,-500.0,0.00032876,7]
[328037260,1716809449807,-500.0,0.00032876,7]
[328037261,1716809449816,-500.0,0.00032876,7]
[328037262,1716809449826,-165.4,0.00032876,7]
[328037263,1716809449836,-500.0,0.00032876,7]
[328037264,1716809449848,-500.0,0.00032876,7]
[328037265,1716809449859,-504.19862081,0.00032876,7]
[328037266,1716809449979,-488.01722429,0.00032876,7]
[328037267,1716809449989,-508.85568371,0.00032876,7]
[328037268,1716809449999,-511.01615828,0.00032876,7]
[328037269,1716809450009,-532.18607593,0.00032876,7]
[328037270,1716809450019,-500.0,0.00032876,7]
[328037271,1716809450029,-500.0,0.00032876,7]
[328037272,1716809450039,-500.0,0.00032876,7]
[328037273,1716809450049,-500.0,0.00032876,7]
[328037274,1716809450059,-500.0,0.00032876,7]
[328037275,1716809450068,-500.0,0.00032876,7]
[328037276,1716809450078,-500.0,0.00032876,7]
[328037277,1716809450087,-508.96155308,0.00032876,7]
[328037278,1716809450097,-292.84651851,0.00032876,7]
[328037279,1716809450107,-500.0,0.00032876,7]
[328037280,1716809450116,-500.0,0.00032876,7]
[328037281,1716809450126,-500.0,0.00032876,7]
[328037282,1716809450135,-500.0,0.00032876,7]
[328037283,1716809450145,-500.0,0.00032876,7]
[328037284,1716809450155,-500.0,0.00032876,7]
[328037285,1716809450164,-500.0,0.00032876,7]
[328037286,1716809450174,-506.22770937,0.00032876,7]
[328037287,1716809450183,-500.0,0.00032876,7]
[328037288,1716809450193,-500.0,0.00032876,7]
[328037289,1716809450202,-338.26,0.00032876,7]
[328037290,1716809450212,-500.0,0.00032876,7]
[328037291,1716809450222,-500.0,0.00032876,7]
[328037292,1716809450231,-500.0,0.00032876,7]
[328037293,1716809450241,-500.0,0.00032876,7]
[328037294,1716809450251,-500.0,0.00032876,7]
[328037295,1716809450260,-500.0,0.00032876,7]
[328037296,1716809450270,-500.0,0.00032876,7]
[328037297,1716809450279,-500.0,0.00032876,7]
[328037298,1716809450289,-346.12,0.00032876,7]
[328037299,1716809450299,-514.95859278,0.00032876,7]
[328037300,1716809450308,-500.0,0.00032876,7]
[328037301,1716809450318,-500.0,0.00032876,7]
[328037302,1716809450327,-349.3,0.00032876,7]
[328037303,1716809450336,-500.0,0.00032876,7]
[328037304,1716809450348,-500.0,0.00032876,7]
[328037305,1716809450357,-547.27235819,0.00032876,7]
[328037306,1716809450366,-554.2118867,0.00032876,7]
[328037307,1716809450376,-500.0,0.00032876,7]
[328037308,1716809450386,-500.0,0.00032876,7]
[328037309,1716809450396,-500.0,0.00032876,7]
[328037310,1716809450407,-502.68614183,0.00032876,7]
[328037311,1716809450416,-422.92876371,0.00032876,7]
[328037312,1716809450426,-500.0,0.00032876,7]
[328037313,1716809450435,-500.0,0.00032876,7]
[328037314,1716809450445,-500.0,0.00032876,7]
[328037315,1716809450455,-500.0,0.00032876,7]
[328037316,1716809450465,-500.0,0.00032876,7]
[328037317,1716809450474,-500.0,0.00032876,7]
[328037318,1716809450484,-500.0,0.00032876,7]
[328037319,1716809450494,-500.0,0.00032876,7]
[328037320,1716809450503,-500.0,0.00032876,7]
[328037321,1716809450514,-500.0,0.00032876,7]
[328037322,1716809450524,-500.0,0.00032876,7]
[328037323,1716809450534,-500.0,0.00032876,7]
[328037324,1716809450544,-500.0,0.00032876,7]
[328037325,1716809450554,-500.0,0.00032876,7]
[328037326,1716809450564,-500.0,0.00032876,7]
[328037327,1716809450574,-589.06,0.00032876,7]
[328037328,1716809450584,-514.72672064,0.00032876,7]
[328037329,1716809450595,-500.0,0.00032876,7]
[328037330,1716809450605,-500.0,0.00032876,7]
[328037331,1716809450615,-500.0,0.00032876,7]
[328037332,1716809450624,-500.40311713,0.00032876,7]
[328037333,1716809450634,-500.0,0.00032876,7]
[328037334,1716809450644,-500.0,0.00032876,7]
[328037335,1716809450654,-500.0,0.00032876,7]
[328037336,1716809450664,-500.0,0.00032876,7]
[328037337,1716809450674,-500.0,0.00032876,7]
[328037338,1716809450684,-500.0,0.00032876,7]
[328037339,1716809450693,-500.0,0.00032876,7]
[328037340,1716809450703,-500.0,0.00032876,7]
[328037341,1716809450713,-504.74195929,0.00032876,7]
[328037342,1716809450723,-500.0,0.00032876,7]
[328037343,1716809450733,-500.0,0.00032876,7]
[328037344,1716809450742,-500.0,0.00032876,7]
[328037345,1716809450752,-500.0,0.00032876,7]
[328037346,1716809450762,-500.0,0.00032876,7]
[328037347,1716809450771,-500.0,0.00032876,7]
[328037348,1716809450781,-629.38,0.00032876,120]
[328037349,1716809450790,-629.38,0.00032876,120]
[328037350,1716809450800,-629.38,0.00032876,120]
[328037351,1716809450809,-500.0,0.00032876,7]
[328037352,1716809450819,-629.38,0.00032876,120]
[328037353,1716809450829,-500.0,0.00032876,7]
[328037354,1716809450839,-629.38,0.00032876,120]
[328037355,1716809450854,-500.0,0.00032876,7]
[328037356,1716809450864,-629.38,0.00032876,120]
[328037357,1716809450873,-500.0,0.00032876,7]
[328037358,1716809450884,-340.49338367,0.00032876,7]
[328037359,1716809450893,-629.38,0.00032876,120]
[328037360,1716809450903,-500.0,0.00032876,7]
[328037361,1716809450912,-629.38,0.00032876,120]
[328037362,1716809450922,-629.38,0.00032876,120]
[328037363,1716809450933,-629.38,0.00032876,120]
[328037364,1716809450944,-204.42611599,0.00032876,7]
[328037365,1716809450954,-629.38,0.00032876,120]
[328037366,1716809450964,-629.38,0.00032876,120]
[328037367,1716809450973,-629.38,0.00032876,120]
[328037368,1716809450982,-518.36657418,0.00032876,7]
[328037369,1716809450993,-500.0,0.00032876,7]
[328037370,1716809451003,-629.38,0.00032876,120]
[328037371,1716809451012,-509.39748332,0.00032876,7]
[328037372,1716809451022,-629.38,0.00032876,120]
[328037373,1716809451032,-629.38,0.00032876,120]
[328037374,1716809451042,-629.38,0.00032876,120]
[328037375,1716809451052,-629.38,0.00032876,120]
[328037376,1716809451061,-500.0,0.00032876,7]
[328037377,1716809451071,-629.38,0.00032876,120]
[328037378,1716809451081,-500.0,0.00032876,7]
[328037379,1716809451091,-629.38,0.00032876,120]
[328037380,1716809451102,-629.38,0.00032876,120]
[328037381,1716809451112,-500.0,0.00032876,7]
[328037382,1716809451122,-500.0,0.00032876,7]
[328037383,1716809451132,-500.0,0.00032876,7]
[328037384,1716809451142,-500.0,0.00032876,7]
[328037385,1716809451152,-629.38,0.00032876,120]
[328037386,1716809451161,-500.0,0.00032876,7]
[328037387,1716809451171,-500.0,0.00032876,7]
[328037388,1716809451181,-629.38,0.00032876,120]
[328037389,1716809451191,-208.2,0.00032876,7]
[328037390,1716809451200,-500.0,0.00032876,7]
[328037391,1716809451209,-629.6126054,0.00032876,120]
[328037392,1716809451219,-500.0,0.00032876,7]
[328037393,1716809451228,-500.0,0.00032876,7]
[328037394,1716809451238,-500.0,0.00032876,7]
[328037395,1716809451248,-486.23552786,0.00032876,7]
[328037396,1716809451258,-500.0,0.00032876,7]
[328037397,1716809451268,-620.0,0.00032876,7]
[328037398,1716809451278,-500.0,0.00032876,7]
[328037399,1716809451287,-500.0,0.00032876,7]
[328037400,1716809451297,-500.0,0.00032876,7]
[328037401,1716809451306,-366.54,0.00032876,7]
[328037402,1716809451316,-198.51521352,0.00032876,7]
[328037403,1716809451325,-500.0,0.00032876,7]
[328037404,1716809451335,-500.0,0.00032876,7]